Cogmind - Beta 11 *** ADVENTURER MODE // 2022.03.30 @ 11:10:07 Player: Odd Result: Smashed by cave-in Performance ------------- Evolutions (0) 0 Regions Visited (2) 400 Robots Destroyed (12) 60 Value Destroyed (132) 132 Prototype IDs (0) 0 Alien Tech Used (0) 0 Bonus (-90) -90 TOTAL SCORE: 502 Bonus ------- Friendly Fire -90 Cogmind --------- Core Integrity 0/250 Matter 92/300 Energy 100/100 System Corruption 1% Temperature Cool (0) Movement Core (200) Ox3 Location -10/Mines Parts ------- > --- POWER (1) -------- (None) > --- PROPULSION (2) --- (None) > --- UTILITY (2) ------ Small Storage Unit > --- WEAPON (2) ------- Slug Cannon > --- INVENTORY (8) ---- Improved Heat Sink Large Storage Unit Transport Network Coupler Assault Rifle Assault Rifle Assault Rifle Peak State ------------ > --- POWER ------------ Ion Engine > --- PROPULSION ------- Aluminum Leg Aluminum Leg > --- UTILITY ---------- Small Storage Unit Improved Terrain Scanner > --- WEAPON ----------- Assault Rifle Slug Cannon > --- INVENTORY -------- Improved Heat Sink Large Storage Unit Transport Network Coupler Assault Rifle Assault Rifle Grenade Launcher [Rating: 12] Favorites ----------- Power Ion Engine Engine Ion Engine Propulsion Aluminum Leg Leg Aluminum Leg Utility Small Storage Unit Device Improved Terrain Scanner Storage Small Storage Unit Weapon Assault Rifle Ballistic Gun Assault Rifle Ballistic Cannon Slug Cannon Launcher Grenade Launcher Build | -11 -10 -10 ------- Run | Scr Mat Min Slots Evolved . | . . . Power . | . . . Propulsion . | . . . Utility . | . . . Weapon . | . . . Parts Attached 12 | 10 . 2 Power 1 | 1 . . Engine 1 | 1 . . Core . | . . . Reactor . | . . . Propulsion 4 | 4 . . Treads . | . . . Leg 4 | 4 . . Wheel . | . . . Hover . | . . . Flight . | . . . Utility 3 | 3 . . Device 1 | 1 . . Storage 2 | 2 . . Processor . | . . . Hackware . | . . . Protection . | . . . Artifact . | . . . Weapon 4 | 2 . 2 Energy Gun . | . . . Energy Cannon . | . . . Ballistic Gun 2 | 2 . . Ballistic Cannon 1 | . . 1 Launcher 1 | . . 1 Special Weapon . | . . . Impact Weapon . | . . . Slashing Weapon . | . . . Piercing Weapon . | . . . Special Melee Weapon . | . . . Unidentified Prototypes . | . . . Parts Lost 5 | . . 5 Power 1 | . . 1 Propulsion 2 | . . 2 Utility 1 | . . 1 Weapon 1 | . . 1 Highest Loss Streak 4 | . . 4 To Critical Strikes . | . . . Average Slot Usage (%) 93 | . 100 87 Engine 11 | . 14 8 Leg 26 | . 28 24 Device 13 | . 14 12 Storage 14 | . 14 14 Ballistic Gun 21 | . 28 16 Ballistic Cannon 3 | . . 5 Launcher 2 | . . 4 Naked Turns . | . . . Heaviest Build 21 | 19 15 21 Greatest Support 20 | 20 20 20 Greatest Overweight (x) 6 | 6 . 3 Average Overweight (x) 4 | 4 . . Largest Inventory Capacity 8 | 8 8 8 Average Capacity 7 | 7 8 8 Most Carried 6 | 3 5 6 Average Carried 2 | 2 2 5 Final Capacity 8 | 8 8 8 Final Carried 6 | 1 5 6 Class Distribution -------------------- 100% | Mutant Dominant Class ---------------- Mutant | -10/Materials Mutant | -10/Mines Resources | -11 -10 -10 ----------- Run | Scr Mat Min Matter Collected 405 | 354 48 3 Remotely . | . . . Salvage Created 450 | 205 141 104 Parts 28 | 21 6 1 Haulers Intercepted 1 | . 1 . Recyclers Shooed 1 | . . 1 Parts Field Recycled . | . . . Retrieved Matter . | . . . Parts Self-Destructed . | . . . Prevented . | . . . Kills | -11 -10 -10 ------- Run | Scr Mat Min Combat Hostiles Destroyed 13 | . 2 11 Guns 2 | . 2 . Cannons 3 | . . 3 AOE 8 | . . 8 Classes Destroyed 6 | 3 2 1 Worker 2 | 2 . . Tunneler 5 | 5 . . Hauler 1 | . 1 . Recycler 2 | 1 . 1 Grunt 2 | . 2 . Assembled 11 | . . 11 Best Kill Streak 11 | 6 2 11 Combat Bots Only 11 | . 1 11 Max Kills in Single Turn 4 | 1 1 4 Gunslinging . | . . . Exploded 4 | . . 4 Melee . | . . . Uniques/NPCs Destroyed . | . . . Combat | -11 -10 -10 -------- Run | Scr Mat Min Damage Taken 953 | . 80 873 Core 267 | . . 267 Absorbed by Shields . | . . . Core Remaining (%) 100 | 100 . . Volleys Fired 38 | 9 8 21 Largest 2 | 2 2 2 Hottest 78 | 40 40 78 Shots Fired 66 | 18 16 32 Gun 38 | 18 16 4 Cannon 19 | . . 19 Launcher 9 | . . 9 Special . | . . . Kinetic 57 | 18 16 23 Thermal . | . . . Explosive 9 | . . 9 Electromagnetic . | . . . Robot Hit Streak 19 | 11 15 19 Robot Miss Streak 3 | 1 . 3 Penetration Max . | . . . Secondary Targets . | . . . Shots Hit Robots 45 | 13 14 18 Core Hits 39 | 9 7 23 Critical Kills 1 | . . 1 Critical Parts Destroyed 2 | . . 2 Critical Strikes 3 | . . 3 Destroy 3 | . . 3 Melee Attacks . | . . . Impact . | . . . Slashing . | . . . Piercing . | . . . Sneak Attacks . | . . . Combat Hostiles . | . . . Follow-up Attacks . | . . . Damage Inflicted 1083 | 161 175 747 Guns 395 | 161 175 59 Cannons 254 | . . 254 Explosions 434 | . . 434 Melee . | . . . Ramming . | . . . Kinetic 649 | 161 175 313 Thermal . | . . . Explosive 434 | . . 434 Electromagnetic . | . . . Impact . | . . . Slashing . | . . . Piercing . | . . . Highest Corruption 1 | . . 1 Average Corruption 1 | . . 1 Corruption Purged . | . . . Corruption Blocked . | . . . Overload Shots . | . . . Overflow Damage 13 | . . 13 Projectiles 13 | . . 13 Explosions . | . . . Melee . | . . . Knockbacks 4 | . . 4 Impact . | . . . Kinetic 3 | . . 3 Secondary 1 | . . 1 Self-Inflicted Damage 17 | . . 17 Shots 1 | . . 1 Rammed . | . . . Targets Rammed . | . . . Kicked . | . . . Crushed . | . . . Highest Temperature 35 | . 20 35 Average Temperature 18 | . 7 21 Received Heat Transfer 72 | . 72 . Siege Activations . | . . . Robots Corrupted . | . . . Combat Hostiles . | . . . Parts Fried . | . . . Impact Corruptions . | . . . Robots Melted . | . . . Combat Hostiles . | . . . Parts Melted . | . . . Heat Transferred . | . . . Parts Sabotaged . | . . . Parts Stolen . | . . . Parts Stripped . | . . . Power Chain Reactions . | . . . Missiles Intercepted . | . . . Alert | -11 -10 -10 ------- Run | Scr Mat Min Peak Influence 101 | 30 101 79 Initial 33 | . 2 33 Average 4 | 1 49 42 Maximum Alert Level . | . . . Low Security (%) 100 | 100 100 100 Level 1 . | . . . Level 2 . | . . . Level 3 . | . . . Level 4 . | . . . Level 5 . | . . . High Security . | . . . Max Security . | . . . Squads Dispatched 1 | . 1 . Investigation 1 | . 1 . Extermination . | . . . Reinforcement . | . . . Assault . | . . . Garrison . | . . . Intercept . | . . . Searches Triggered . | . . . Construction Impeded . | . . . Haulers Reinforced . | . . . Active Scanning Responses . | . . . Cargo Convoy Interrupts . | . . . Stealth | -11 -10 -10 --------- Run | Scr Mat Min Distress Signals . | . . . Communications Jammed . | . . . Distress Signals . | . . . Times Spotted 17 | . 3 14 Peak Tracking Total 8 | . 2 8 Tactical Retreats 2 | . 1 1 Traps | -11 -10 -10 ------- Run | Scr Mat Min Traps Triggered . | . . . Indirectly . | . . . Trap Hack Attempts . | . . . Triggered . | . . . Disarmed . | . . . Reprogrammed . | . . . Reused . | . . . Traps Extracted . | . . . Installed . | . . . Triggered . | . . . Machines | -11 -10 -10 ---------- Run | Scr Mat Min Machines Disabled . | . . . Max in Single Turn . | . . . Machines Sabotaged . | . . . Garrisons Compromised . | . . . Overloaded Fab Kills . | . . . Hacking | -11 -10 -10 --------- Run | Scr Mat Min Machines Accessed 2 | . 2 . Terminals 2 | . 2 . Fabricators . | . . . Repair Stations . | . . . Recycling Units . | . . . Scanalyzers . | . . . Garrison Access . | . . . Total Hacks 4 | . 4 . Successful 2 | . 2 . Failed 2 | . 2 . Catastrophic . | . . . Database Lockouts . | . . . Manual . | . . . Terminals 4 | . 4 . Fabricators . | . . . Repair Stations . | . . . Recycling Units . | . . . Scanalyzers . | . . . Garrison Access . | . . . Terminal Hacks 2 | . 2 . Record 1 | . 1 . Hauler Manifests 1 | . 1 . Fabricator Hacks . | . . . Repair Station Hacks . | . . . Recycling Unit Hacks . | . . . Scanalyzer . | . . . Garrison Access Hacks . | . . . Unauthorized Hacks . | . . . Terminals . | . . . Fabricators . | . . . Repair Stations . | . . . Recycling Units . | . . . Scanalyzers . | . . . Garrison Access . | . . . Data Cores Recovered . | . . . Used . | . . . Hacking Detections 2 | . 2 . Full Trace Events . | . . . Feedback Events . | . . . Feedback Blocked . | . . . Robot Schematics Acquired . | . . . Robots Built . | . . . Authchips . | . . . Time . | . . . Total Robot Build Rating . | . . . Part Schematics Acquired . | . . . Parts Built . | . . . Authchips . | . . . Time . | . . . Total Part Build Rating . | . . . Parts Repaired . | . . . Time . | . . . Parts Recycled . | . . . Recycled Matter . | . . . Retrieved Matter . | . . . Retrieved Components . | . . . Parts Scanalyzed . | . . . Part Schematics Acquired . | . . . Parts Damaged . | . . . Bothacking | -11 -10 -10 ------------ Run | Scr Mat Min Used RIF Installer . | . . . Robots Hacked . | . . . Non-combat . | . . . Combat . | . . . Robot Hacks Applied . | . . . Relay Couplers Released . | . . . Fabnet Peak Effective % . | . . . Robots Rewired . | . . . Allies Hacked . | . . . Hacks Repelled . | . . . Allies | -11 -10 -10 -------- Run | Scr Mat Min Total Allies . | . . . Largest Group . | . . . Highest-Rated Group . | . . . Highest-Rated Ally . | . . . Total Orders . | . . . Ally Attacks . | . . . Total Damage . | . . . Kills . | . . . Allies Corrupted . | . . . Allies Melted . | . . . Intel | -11 -10 -10 ------- Run | Scr Mat Min Robot Analysis Total . | . . . Derelict Logs Recovered 2 | . . 2 Drone Launches . | . . . Drone Recoveries . | . . . Exploration | -11 -10 -10 ------------- Run | Scr Mat Min Turns Passed 6567 | 6207 170 190 Spaces Moved 1757 | 1559 97 101 Core 1382 | 1373 . 9 Treads . | . . . Legs 375 | 186 97 92 Wheels . | . . . Hover . | . . . Flight . | . . . Fastest Speed 50 | 50 120 120 Average Speed 272 | 290 120 131 Slowest Speed 350 | 350 120 200 Overloaded Moves . | . . . Propulsion Burnouts . | . . . Robots Hopped . | . . . Cave-ins Triggered 2 | . . 2 Exploration Rate (%) 51 | 101 21 33 Regions Visited 2 Branch Regions 1 Pre-discovered Areas . | . . . Known Exits Taken . | . . . Unknown Exits Taken 2 | 1 1 . Scrap Searched . | . . . Spaces Dug . | . . . Terrain Destroyed 50 | . . 50 Melee . | . . . Projectile 11 | . . 11 AOE 39 | . . 39 Terrain Rammed . | . . . Walls Destroyed . | . . . Machines Disabled . | . . . Actions | -11 -10 -10 --------- Run | Scr Mat Min Total 3472 | 3211 135 126 Wait 1656 | 1630 25 1 Move 1755 | 1558 96 101 Hop . | . . . Pick Up 7 | 1 5 1 Fast Attach 8 | 8 . . Attach 2 | 2 . . Detach 2 | 2 . . Swap 2 | . . 2 Drop 2 | 1 1 . Fire 38 | 9 8 21 Melee . | . . . Ram . | . . . Kick . | . . . Crush . | . . . Escape Stasis . | . . . Rewire . | . . . Trap . | . . . Miscellaneous . | . . . Route ------- -11/Scrapyard -10/Materials -10/Mines History --------- Turn | Location | Event 4 | -11/Scrapyard | Discovered new exit (range 14) 6208 | -11/Scrapyard | Entered Materials 6209 | -10/Materials | Build established: Mutant 6309 | -10/Materials | Discovered new exit (range 15) 6316 | -10/Materials | Met 8R-AWN 6378 | -10/Materials | Entered Mines 6381 | -10/Mines | Attacked by 8R-AWN 6401 | -10/Mines | Learned 2 Materials zone layouts 6454 | -10/Mines | Assembled infested the area 6456 | -10/Mines | A weapon hastily lodged in a ceiling crevice suddenly fell to the ground 6537 | -10/Mines | Core integrity fell below 50% 6547 | -10/Mines | Crushed by falling debris 6567 | -10/Mines | Destroyed 11 combat bots 6569 | -10/Mines | Crushed by falling debris 6569 | -10/Mines | Smashed by cave-in Last Messages --------------- 06547_ Imp. Terrain Scanner destroyed. 06547_ Aluminum Leg destroyed. 06547_ Grenade Launcher destroyed. 06547_ System corrupted by crushing effect (+1). 06548_ The unstable cave ceiling collapses. 06550_ U-05 Engineer builds a Wall. 06555_ The unstable cave ceiling collapses. 06556_ K-01 Serf collects debris. 06559_ R-06 Scavenger collects Cmb. Airjet. 06560_ U-05 Engineer lays Concrete. 06561_ The unstable cave ceiling collapses. 06561_ U-05 Engineer lays Concrete. 06561_ K-01 Serf collects debris. 06562_ The unstable cave ceiling collapses. 06562_ U-05 Engineer lays Concrete. 06562_ R-06 Scavenger collects Lgt. Deuterium Engine. 06563_ U-05 Engineer builds a Wall. 06568_ R-06 Scavenger destroyed. 06569_ The unstable cave ceiling collapses. 06569_ Crushed by falling debris. Map ----- +----------------------------------------------------+ | ???????????????????????????????????????# # | | ???????????????????????????????????????? | | ??????????????????????????????????????????# | | ??????????????????????????????????????????? | | ????????????? ???????????????????????????? | | ????????#?#?? ???????????????????????????? | | ?????? ????? =!??????????????????????????? | | ???? ???? %#??????????????????????????? | | ??# ?#?#!=#????????????????????????#?? | | ??# #??# %#??????????????????????????? | | ??? ### #??????#???????????????????? | | ???? ##?????????????????????????? | | ????? %! ??????????#?????#####?????? | | ?????? % ????????????????? #?????? | | ??##? ? % ##????????????????# #?#???? | | ?## ? ?# " #?????#?????????## #?????? | | ?# ??# #= #????????????????# #?????? | | ?# ## ####??#?????###### ####### | | ??? " % % # ##?#??#### # | | ?????? ### # ##??## | | #?? ???# # # ##?# | | ???????# # #% ### ### | | ???????## *%= # ##### ##?? | | ????????## ! r % ##???## #??? | | ????????# # # % %##?????# #??# | | ??????#?#### # @ ##??????# ##??? | | ??????### ### # ##????#??## ###???? | | ???????## ## # ##### #??????#??###?????? | | ????????# # #????# #?#???????????????? | | ?#?#????# # ###????# #?##??????????????? | | ???###??# # ##???#?# ###????#??????????? | | ??#? # ######## #????????#??????? | | ??????##### #???????????????? | | ?????????# ######### #???????????????? | | ?????????### ##???????? #????????#??????? | | ?????????#######???????? #???????????????? | | ?????????#?????????????? #???????????????? | | ???????????????????#???? ##?????#?????????? | | ?#?????????????????????? #????????????????? | | ???????????????????#????##????????????????? | | ????? ?????#????#?????????????????????????? | | #??????? ????????#????????????????????????? | | ????????????????????????????#?????????????? | | ??????????????????????????????????????????? | | ??????????????????? ??????????????????????? | | ??????????????????????????????????????????? | | ??????????????????????????????????????????? | | ???????????? ?????????????????????????????? | | ??????????????????????????????????????????? | | ??????????????????????????????????????????? | +----------------------------------------------------+ Best States ------------- Heat Dissipation 25 Energy Generation 10 Energy Capacity 250 Matter Stores 300 Matter Capacity 300 Sight Range 16 Terrain Scan Range 16 Terrain Scan Density 10 Resistance: KI 20 Resistance: TH 20 Resistance: EX 20 Resistance: EM 20 Resistance: I 20 Resistance: S 20 Resistance: P 20 Evasion (%) 55 Offensive Hacking 10 Item Schematics ----------------- None Robot Schematics ------------------ None Fabricated ------------ Nothing Alien Tech Used ----------------- None Achievements -------------- None Challenges ------------ None Game ------ Seed DamperImprinterBoregun Manual? 0 Play Time 00:15:58 Cumulative 14.8 hours Start 2022.03.30 @ 10:53:21 End 2022.03.30 @ 11:10:07 Sessions 1 Manual Loads 0 Difficulty Adventurer Special Mode None Game No. 8 Rogue 0 Adventurer 8 Explorer 0 Win Type - Total 1 Types 1/0/0/0/0/0/0/0/0 Lore% 9 Gallery% 20 Achievement% 20 Wizard Run 0 Options --------- ASCII 0 Keyboard 0 Movement Mouse Keybinds 0 Fullscreen 1 Font 18/Terminus Map View 76x50 Tactical HUD 1 Map Filters NONE Filters NONE Steam X RUN: 31c09b24-47f1-4648-853a-aa1bcca4595b